Workbook

Sheet Setup
A1: ΤΟΥΡΝΟΥΑ 32άρι ταμπλό | D1: Θέσεις | E1: seed | H1: 0 | I1: seed | J1: space pos | K1: Index | L1: Value
D2: 3-4 | E2: =VALUE(LEFT(F2,1)) -> 4 | F2: 4 3 | H2: =IF(I2="-","-",IF(I2>0,H1+1,0)) -> 0 | I2: =IF(J2>0,VALUE(MID($A$32,1,J2-1)),"-") -> 0 | J2: =IF(LEN($A$32)>1,FIND(" ",$A$32,1),0) -> 2 | K2: 0 | L2: 0
A3: Διοργανωτής: | B3: ΕΦΟΑ | E3: =VALUE(RIGHT(F2,1)) -> 3 | H3: 0 | I3: =IF(J3>0,VALUE(MID($A$32,J2+1,J3-J2-1)),"-") -> 0 | J3: =IF(AND(J2>0,LEN($A$32)>J2+1),FIND(" ",$A$32,J2+1),0) -> 4 | K3: 0 | L3: 0
A4: Τίτλος Τουρνουά: | B4: 5ο Ε3 | D4: Θέσεις | E4: seed | H4: 0 | I4: 0 | J4: 6 | K4: 0 | L4: 0
A5: type: | B5: e1-16 | D5: 5-8 | E5: =TRIM(LEFT(F5,(FIND(" ",F5,1)-1))) -> 7 | F5: 7 6 8 5 | H5: 0 | I5: 0 | J5: 8 | K5: 0 | L5: 0
A6: Έδρα αγώνων: | B6: A.O. ΒΑΡΗΣ ΑΝΑΓΥΡΟΥΣ | E6: =TRIM(MID(F5,(FIND(" ",F5,1)),FIND(" ",F5,(FIND(" ",F5,1)+1))-(FIND(" ",F5,1)))) -> 6 | H6: 0 | I6: 0 | J6: 10 | K6: 0 | L6: 0
A7: Κατηγορίες: | B7: Κ14 | E7: =TRIM(MID(F5, (FIND(" ",F5,(FIND(" ",F5,1)+1))+1), (FIND(" ",F5,(FIND(" ",F5,(FIND(" ",F5,1)+1))+1)))-(FIND(" ",F5,(FIND(" ",F5,1)+1))+1))) -> 8 | H7: 0 | I7: 0 | J7: 12 | K7: 0 | L7: 0
A8: Έναρξη: | B8: 18 | E8: =TRIM(RIGHT(F5,LEN(F5)-(FIND(" ",F5,(FIND(" ",F5,(FIND(" ",F5,1)+1))+1))))) -> 5 | H8: 0 | I8: 0 | J8: 14 | K8: 0 | L8: 0
A9: Λήξη: | B9: 20 Νοεμβρίου | H9: 0 | I9: 0 | J9: 16 | K9: 0 | L9: 0
A10: Επιδιατητής: | B10: Πατσουράκου Δώρα | H10: 0 | I10: 0 | J10: 18 | K10: 0 | L10: 0
A11: Τηλέφωνο επιδ: | H11: 0 | I11: =IF(J11>0,VALUE(MID($A$32,J10+1,J11-J10-1)),"-") -> 0 | J11: 20 | K11: 0 | L11: 0
H12: =IF(I12="-","-",IF(I12>0,H11+1,0)) -> 0 | I12: 0 | J12: 22 | K12: 0 | L12: 0
H13: 0 | I13: 0 | J13: 24 | K13: 0 | L13: 0
H14: 0 | I14: 0 | J14: 26 | K14: 0 | L14: 0
H15: 0 | I15: 0 | J15: 28 | K15: 0 | L15: 0
H16: 0 | I16: 0 | J16: 30 | K16: 0 | L16: 0
A17: Main Draw | B17: ="("&COUNTBLANK(DrawPrep!D3:D34)&")" -> (15) | H17: 1 | I17: 1 | J17: 32 | K17: 1 | L17: 1
A18: Πλήθος bye (0-15): | B18: =COUNTBLANK(DrawPrep!D3:D34) -> 15 | H18: 2 | I18: 2 | J18: 34 | K18: 2 | L18: 2
A19: Αριθμός θέσεων seeded: | B19: 8 | H19: 3 | I19: 3 | J19: 36 | K19: 3 | L19: 3
H20: 4 | I20: 4 | J20: 38 | K20: 4 | L20: 4
H21: 5 | I21: 5 | J21: 40 | K21: 5 | L21: 5
H22: 6 | I22: 6 | J22: 42 | K22: 6 | L22: 6
H23: 7 | I23: 7 | J23: 44 | K23: 7 | L23: 7
A24: md (# για off) | B24: ok | H24: 8 | I24: 8 | J24: 46 | K24: 8 | L24: 8
H25: 9 | I25: 14 | J25: 49 | K25: 9 | L25: 14
A26: =RandUniq(3,4,2) ->  | H26: 10 | I26: 13 | J26: 52 | K26: 10 | L26: 13
A27: =RandUniq(5,8,4) ->  | H27: 11 | I27: 11 | J27: 55 | K27: 11 | L27: 11
H28: 12 | I28: 16 | J28: 58 | K28: 12 | L28: 16
A29: =CONCATENATE(LEFT($A$34,$B$18*2),LEFT($A$33,$B$19*2),RandUniq($B$19+1,32-$B$18,32-$B$19-$B$18)," ") ->  | H29: 13 | I29: 10 | J29: 61 | K29: 13 | L29: 10
H30: 14 | I30: 9 | J30: 63 | K30: 14 | L30: 9
H31: 15 | I31: 17 | J31: 66 | K31: 15 | L31: 17
A32: 0 0 0 0 0 0 0 0 0 0 0 0 0 0 0 1 2 3 4 5 6 7 8 14 13 11 16 10 9 17 12 15 | H32: 16 | I32: 12 | J32: 69 | K32: 16 | L32: 12
A33: 1 2 3 4 5 6 7 8 | H33: 17 | I33: 15 | J33: 72 | K33: 17 | L33: 15
A34: 0 0 0 0 0 0 0 0 0 0 0 0 0 0 0 0 0 0 0 0 0 0 0 0 0 0 0 0 0 0 0 0 0 0 0 0 0 0 0 0

Sheet DrawPrep (hidden)
A1: =Setup!$B$3 & ", " & Setup!$B$4 & ", " & Setup!$B$6 & ", " & Setup!$B$8 & "-" & Setup!$B$9 -> ΕΦΟΑ, 5ο Ε3, A.O. ΒΑΡΗΣ ΑΝΑΓΥΡΟΥΣ, 18-20 Νοεμβρίου | H1: =Setup!B7 -> Κ14
A2: α/α | B2: από | C2: Α.Μ. | D2: Ονοματεπώνυμο | E2: Σύλλογος | F2: βαθμοί | G2: Τηλέφωνο | H2: Υπογραφή | I2: SortPts | J2: Rnd | K2: trim
A3: 1 | C3: 33920 | D3: ΠΛΑΤΣΙΩΤΑ ΡΑΦΑΕΛΑ | E3: Α.Ο.Α.ΑΤΤΙΚΟΣ ΗΛΙΟΣ | F3: 66 | I3: =IF(D3>" ",F3+J3,0) -> 66.00260298 | J3: 0.002602975693 | K3: =TRIM(D3) -> ΠΛΑΤΣΙΩΤΑ ΡΑΦΑΕΛΑ
A4: 2 | C4: 35645 | D4: ΜΠΑΞΟΠΟΥΛΟΥ ΔΕΣΠΟΙΝΑ | E4: ΠΕΥΚΗ Γ.ΚΑΛΟΒΕΛΩΝΗΣ | F4: 59 | I4: 59.00327931 | J4: 0.003279305256 | K4: ΜΠΑΞΟΠΟΥΛΟΥ ΔΕΣΠΟΙΝΑ
A5: 3 | C5: 34938 | D5: ΚΑΡΑΟΥΖΑ ΣΙΜΟΝ-ΜΑΡΙΑ | E5: Σ.Α.ΡΑΦΗΝΑΣ | F5: 50.5 | I5: 50.50055847 | J5: 0.0005584715887 | K5: ΚΑΡΑΟΥΖΑ ΣΙΜΟΝ-ΜΑΡΙΑ
A6: 4 | C6: 34304 | D6: ΚΟΥΡΟΥΚΛΗ ΑΛΕΞΑΝΔΡΑ | E6: Ο.Α.ΑΘΗΝΩΝ | F6: 44.5 | I6: 44.50251592 | J6: 0.002515920705 | K6: ΚΟΥΡΟΥΚΛΗ ΑΛΕΞΑΝΔΡΑ
A7: 5 | C7: 35976 | D7: ΠΑΠΑΠΑΝΑΓΙΩΤΟΥ ΗΔΥΛΗ-ΜΑΡΙΑ | E7: Α.Ο.Α.ΑΤΤΙΚΟΣ ΗΛΙΟΣ | F7: 44.5 | I7: 44.50038385 | J7: 0.0003838519859 | K7: ΠΑΠΑΠΑΝΑΓΙΩΤΟΥ ΗΔΥΛΗ-ΜΑΡΙΑ
A8: 6 | C8: 34244 | D8: ΜΑΥΡΟΜΑΤΗ ΜΑΡΙΑ | E8: Α.Σ.ΑΚΡΟΠΟΛΙΣ | F8: 43.5 | I8: 43.50338658 | J8: 0.003386577433 | K8: ΜΑΥΡΟΜΑΤΗ ΜΑΡΙΑ
A9: 7 | C9: 33367 | D9: ΚΑΤΣΟΥΔΑ ΑΣΠΑΣΙΑ | E9: Ο.Α.ΣΥΡΟΥ | F9: 43 | I9: 43.0033794 | J9: 0.00337940028 | K9: ΚΑΤΣΟΥΔΑ ΑΣΠΑΣΙΑ
A10: 8 | C10: 35150 | D10: ΠΙΣΛΗ ΕΙΡΗΝΗ | E10: Α.Ο.Α.ΑΤΤΙΚΟΣ ΗΛΙΟΣ | F10: 40.5 | I10: 40.50427321 | J10: 0.004273208664 | K10: ΠΙΣΛΗ ΕΙΡΗΝΗ
A11: 9 | C11: 27518 | D11: ΚΟΥΛΟΚΥΘΑ ΣΗΜΕΛΑ-ΑΡΕΤΗ | E11: Σ.Α.ΡΑΦΗΝΑΣ | F11: 38 | I11: 38.00421757 | J11: 0.004217574819 | K11: ΚΟΥΛΟΚΥΘΑ ΣΗΜΕΛΑ-ΑΡΕΤΗ
A12: 10 | C12: 35699 | D12: ΚΩΛΕΤΣΗ ΑΙΚΑΤΕΡΙΝΗ | E12: Α.Κ.Α.ΜΑΡΑΘΩΝΑ | F12: 38 | I12: 38.00122914 | J12: 0.00122913736 | K12: ΚΩΛΕΤΣΗ ΑΙΚΑΤΕΡΙΝΗ
A13: 11 | C13: 34303 | D13: ΚΟΥΡΟΥΚΛΗ ΑΝΝΑ | E13: Ο.Α.ΑΘΗΝΩΝ | F13: 31 | I13: 31.000975 | J13: 0.0009749952851 | K13: ΚΟΥΡΟΥΚΛΗ ΑΝΝΑ
A14: 12 | C14: 35916 | D14: ΚΕΦΑΛΑ ΑΝΝΑ | E14: Α.Κ.Α.ΜΑΡΑΘΩΝΑ | F14: 28.5 | I14: 28.50422224 | J14: 0.004222237882 | K14: ΚΕΦΑΛΑ ΑΝΝΑ
A15: 13 | C15: 37647 | D15: ΠΑΠΑΓΕΩΡΓΙΟΥ ΕΛΕΑΝΝΑ | E15: Α.Ο.ΑΤΛΑΝΤΙΣ | F15: 18 | I15: 18.00137517 | J15: 0.001375166858 | K15: ΠΑΠΑΓΕΩΡΓΙΟΥ ΕΛΕΑΝΝΑ
A16: 14 | C16: 35159 | D16: ΕΥΘΥΜΙΑΔΗ ΝΤΟΡΙΑΝΝΑ | E16: Α.Ο.Α.ΑΤΤΙΚΟΣ ΗΛΙΟΣ | F16: 17 | I16: 17.00291893 | J16: 0.002918932404 | K16: ΕΥΘΥΜΙΑΔΗ ΝΤΟΡΙΑΝΝΑ
A17: 15 | C17: 35739 | D17: ΔΟΥΛΟΠΟΥΛΟΥ ΕΛΙΣΣΑΒΕΤ | E17: Ο.Α.ΑΘΗΝΩΝ | F17: 12 | I17: 12.00258052 | J17: 0.002580515606 | K17: ΔΟΥΛΟΠΟΥΛΟΥ ΕΛΙΣΣΑΒΕΤ
A18: 16 | C18: 37755 | D18: ΚΑΛΑΧΑΝΗ ΣΤΑΥΡΟΥΛΑ-ΑΝΝΑ | E18: Α.Σ.ΚΟΛΛΕΓΙΟΥ ΝΤΕΡΗ | F18: 5 | I18: 5.00311017 | J18: 0.003110170151 | K18: ΚΑΛΑΧΑΝΗ ΣΤΑΥΡΟΥΛΑ-ΑΝΝΑ
A19: 17 | C19: 38581 | D19: ΑΝΑΓΝΩΣΤΟΠΟΥΛΟΥ ΕΥΡΙΔΗΚΗ-ΕΙΡΗΝΗ | E19: Α.Μ.Ε.Σ.Ν.ΕΡΥΘΡΑΙΑΣ | F19: 4.5 | I19: 4.503816165 | J19: 0.003816164706 | K19: ΑΝΑΓΝΩΣΤΟΠΟΥΛΟΥ ΕΥΡΙΔΗΚΗ-ΕΙΡΗΝΗ
A20: 18 | I20: 0 | J20: 0.003951735242
A21: 19 | I21: 0 | J21: 0.00080035567
A22: 20 | I22: 0 | J22: 0.001520718879
A23: 21 | I23: 0 | J23: 0.003640462491
A24: 22 | I24: 0 | J24: 0.004111154678
A25: 23 | I25: 0 | J25: 0.001151375949
A26: 24 | I26: 0 | J26: 0.003575553357
A27: 25 | I27: 0 | J27: 0.003336892656
A28: 26 | I28: 0 | J28: 0.003781824564
A29: 27 | I29: 0 | J29: 0.002097155124
A30: 28 | I30: 0 | J30: 0.004326618819
A31: 29 | I31: 0 | J31: 0.002546556927
A32: 30 | I32: 0 | J32: 0.0009152265709
A33: 31 | I33: 0 | J33: 6.182517313e-05
A34: 32 | I34: 0 | J34: 0.003367080569
B37: Walk over | E37: med | H37: επιδιαιτητής
B38: α/α | C38: Α.Μ. | D38: Ονοματεπώνυμο | E38: Ν ή Ο | H38: =Setup!$B$10 -> Πατσουράκου Δώρα
B39: 1 | C39: 90158 | D39: ΤΟΝΤΟΡΟΒΑ ΓΚΑΜΠΡΙΕΛΑ
B40: 2 | C40: 38369 | D40: ΑΒΡΑΜΗ ΕΙΡΗΝΗ
B41: 3 | C41: 35296 | D41: ΑΝΑΓΝΩΣΤΟΠΟΥΛΟΥ ΑΛΙΚΗ
B42: 4
B43: 5

Sheet Draw
A1: =Setup!B3 & ", " & Setup!B4 & ", " & Setup!B6 & ", " & Setup!B8 & "-" & Setup!B9 -> ΕΦΟΑ, 5ο Ε3, A.O. ΒΑΡΗΣ ΑΝΑΓΥΡΟΥΣ, 18-20 Νοεμβρίου | T1: =Setup!B7 -> Κ14
B2: =Setup!B18 -> 15 | I2: p1 | N2: p2 | P2: p3 | R2: p4 | T2: p5-6
J3: 32 | N3: 16 | P3: 8 | R3: 4 | T3: 2 & w
A4: α/α | C4: ByeOrder | D4: ByeSum | E4: ByeCnt | F4: από | G4: seed | H4: Pts | I4: Α.Μ. | J4: Ονοματεπώνυμο | K4: επώνυμο | L4: Σύλλογος
A5: 1 | B5: 1 | E5: 0 | F5: =IF(NOT($G5="-"),VLOOKUP($G5,DrawPrep!$A$3:$F$34,2,FALSE),"") -> 0 | G5: =VLOOKUP($B5,Setup!$K$2:$L$33,2,FALSE) -> 1 | H5: =IF($G5>0,VLOOKUP($G5,DrawPrep!$A$3:$F$34,6,FALSE),0) -> 66 | I5: =IF(Setup!$B$24="#",0,IF($G5>0,VLOOKUP($G5,DrawPrep!$A$3:$F$34,3,FALSE),0)) -> 33920 | J5: =IF($I5>0,VLOOKUP($I5,DrawPrep!$C$3:$F$34,2,FALSE),"bye") -> ΠΛΑΤΣΙΩΤΑ ΡΑΦΑΕΛΑ | K5: =IF(NOT(I5>0),"", IF(ISERROR(FIND("-",J5)), LEFT(J5,FIND(" ",J5)-1), IF(FIND("-",J5)>FIND(" ",J5),LEFT(J5,FIND(" ",J5)-1), LEFT(J5,FIND("-",J5)-1) ))) -> ΠΛΑΤΣΙΩΤΑ | L5: =IF($I5>0,VLOOKUP($I5,DrawPrep!$C$3:$F$34,3,FALSE),"") -> Α.Ο.Α.ΑΤΤΙΚΟΣ ΗΛΙΟΣ | M5: 1 | N5: =UPPER(IF($A$2="R",IF(OR(M5=1,M5="a"),I5,IF(OR(M5=2,M5="b"),I6,"")),IF(OR(M5=1,M5="1"),K5,IF(OR(M5=2,M5="b"),K6,"")))) -> ΠΛΑΤΣΙΩΤΑ
A6: 2 | B6: =1-D6+8 -> 8 | C6: =B5 -> 1 | D6: =E6 -> 1 | E6: =IF($B$2>=C6,1,0) -> 1 | F6: =IF(NOT($G6="-"),VLOOKUP($G6,DrawPrep!$A$3:$F$34,2,FALSE),"") ->  | G6: =IF($B$2>=C6,"-",VLOOKUP($B6,Setup!$K$2:$L$33,2,FALSE)) -> - | H6: =IF(NOT($G6="-"),VLOOKUP($G6,DrawPrep!$A$3:$F$34,6,FALSE),0) -> 0 | I6: =IF(Setup!$B$24="#",0,IF(NOT($G6="-"),VLOOKUP($G6,DrawPrep!$A$3:$F$34,3,FALSE),0)) -> 0 | J6: =IF($I6>0,VLOOKUP($I6,DrawPrep!$C$3:$F$34,2,FALSE),"bye") -> bye | K6: =IF(NOT(I6>0),"", IF(ISERROR(FIND("-",J6)), LEFT(J6,FIND(" ",J6)-1), IF(FIND("-",J6)>FIND(" ",J6),LEFT(J6,FIND(" ",J6)-1), LEFT(J6,FIND("-",J6)-1) ))) ->  | L6: =IF($I6>0,VLOOKUP($I6,DrawPrep!$C$3:$F$34,3,FALSE),"") ->  | O6: 1 | P6: =UPPER(IF($A$2="R",IF(OR(O6=1,O6="a"),N5,IF(OR(O6=2,O6="b"),N7,"")),IF(OR(O6=1,O6="a"),N5,IF(OR(O6=2,O6="b"),N7,"")))) -> ΠΛΑΤΣΙΩΤΑ
A7: 3 | B7: =2-D7+8 -> 9 | D7: =D6+E7 -> 1 | E7: 0 | F7: =IF(NOT($G7="-"),VLOOKUP($G7,DrawPrep!$A$3:$F$34,2,FALSE),"") -> 0 | G7: =VLOOKUP($B7,Setup!$K$2:$L$33,2,FALSE) -> 14 | H7: =IF($G7>0,VLOOKUP($G7,DrawPrep!$A$3:$F$34,6,FALSE),0) -> 17 | I7: =IF(Setup!$B$24="#",0,IF($G7>0,VLOOKUP($G7,DrawPrep!$A$3:$F$34,3,FALSE),0)) -> 35159 | J7: =IF($I7>0,VLOOKUP($I7,DrawPrep!$C$3:$F$34,2,FALSE),"bye") -> ΕΥΘΥΜΙΑΔΗ ΝΤΟΡΙΑΝΝΑ | K7: ΕΥΘΥΜΙΑΔΗ | L7: =IF($I7>0,VLOOKUP($I7,DrawPrep!$C$3:$F$34,3,FALSE),"") -> Α.Ο.Α.ΑΤΤΙΚΟΣ ΗΛΙΟΣ | M7: 1 | N7: =UPPER(IF($A$2="R",IF(OR(M7=1,M7="a"),I7,IF(OR(M7=2,M7="b"),I8,"")),IF(OR(M7=1,M7="a"),K7,IF(OR(M7=2,M7="b"),K8,"")))) -> ΕΥΘΥΜΙΑΔΗ | P7: 61 62
A8: 4 | B8: =3-D8+8 -> 9 | C8: 15 | D8: =D7+E8 -> 2 | E8: =IF($B$2>=C8,1,0) -> 1 | F8: =IF(NOT($G8="-"),VLOOKUP($G8,DrawPrep!$A$3:$F$34,2,FALSE),"") ->  | G8: =IF($B$2>=C8,"-",VLOOKUP($B8,Setup!$K$2:$L$33,2,FALSE)) -> - | H8: =IF(NOT($G8="-"),VLOOKUP($G8,DrawPrep!$A$3:$F$34,6,FALSE),0) -> 0 | I8: =IF(Setup!$B$24="#",0,IF(NOT($G8="-"),VLOOKUP($G8,DrawPrep!$A$3:$F$34,3,FALSE),0)) -> 0 | J8: =IF($I8>0,VLOOKUP($I8,DrawPrep!$C$3:$F$34,2,FALSE),"bye") -> bye | L8: =IF($I8>0,VLOOKUP($I8,DrawPrep!$C$3:$F$34,3,FALSE),"") ->  | R8: =UPPER(IF($A$2="R",IF(OR(Q8=1,Q8="a"),P6,IF(OR(Q8=2,Q8="b"),P10,"")),IF(OR(Q8=1,Q8="a"),P6,IF(OR(Q8=2,Q8="b"),P10,"")))) -> 
A9: 5 | B9: =4-D9+8 -> 10 | D9: 2 | E9: 0 | F9: =IF(NOT($G9="-"),VLOOKUP($G9,DrawPrep!$A$3:$F$34,2,FALSE),"") -> 0 | G9: =VLOOKUP($B9,Setup!$K$2:$L$33,2,FALSE) -> 13 | H9: =IF($G9>0,VLOOKUP($G9,DrawPrep!$A$3:$F$34,6,FALSE),0) -> 18 | I9: =IF(Setup!$B$24="#",0,IF($G9>0,VLOOKUP($G9,DrawPrep!$A$3:$F$34,3,FALSE),0)) -> 37647 | J9: =IF($I9>0,VLOOKUP($I9,DrawPrep!$C$3:$F$34,2,FALSE),"bye") -> ΠΑΠΑΓΕΩΡΓΙΟΥ ΕΛΕΑΝΝΑ | K9: ΠΑΠΑΓΕΩΡΓΙΟΥ | L9: =IF($I9>0,VLOOKUP($I9,DrawPrep!$C$3:$F$34,3,FALSE),"") -> Α.Ο.ΑΤΛΑΝΤΙΣ | M9: 1 | N9: =UPPER(IF($A$2="R",IF(OR(M9=1,M9="a"),I9,IF(OR(M9=2,M9="b"),I10,"")),IF(OR(M9=1,M9="a"),K9,IF(OR(M9=2,M9="b"),K10,"")))) -> ΠΑΠΑΓΕΩΡΓΙΟΥ
A10: 6 | B10: =5-D10+8 -> 10 | C10: 9 | D10: 3 | E10: =IF($B$2>=C10,1,0) -> 1 | F10: =IF(NOT($G10="-"),VLOOKUP($G10,DrawPrep!$A$3:$F$34,2,FALSE),"") ->  | G10: =IF($B$2>=C10,"-",VLOOKUP($B10,Setup!$K$2:$L$33,2,FALSE)) -> - | H10: =IF(NOT($G10="-"),VLOOKUP($G10,DrawPrep!$A$3:$F$34,6,FALSE),0) -> 0 | I10: =IF(Setup!$B$24="#",0,IF(NOT($G10="-"),VLOOKUP($G10,DrawPrep!$A$3:$F$34,3,FALSE),0)) -> 0 | J10: =IF($I10>0,VLOOKUP($I10,DrawPrep!$C$3:$F$34,2,FALSE),"bye") -> bye | L10: =IF($I10>0,VLOOKUP($I10,DrawPrep!$C$3:$F$34,3,FALSE),"") ->  | O10: 2 | P10: =UPPER(IF($A$2="R",IF(OR(O10=1,O10="a"),N9,IF(OR(O10=2,O10="b"),N11,"")),IF(OR(O10=1,O10="a"),N9,IF(OR(O10=2,O10="b"),N11,"")))) -> ΚΑΤΣΟΥΔΑ
A11: 7 | B11: =6-D11+8 -> 10 | C11: =B12 -> 7 | D11: 4 | E11: =IF($B$2>=C11,1,0) -> 1 | F11: =IF(NOT($G11="-"),VLOOKUP($G11,DrawPrep!$A$3:$F$34,2,FALSE),"") ->  | G11: =IF($B$2>=C11,"-",VLOOKUP($B11,Setup!$K$2:$L$33,2,FALSE)) -> - | H11: =IF(NOT($G11="-"),VLOOKUP($G11,DrawPrep!$A$3:$F$34,6,FALSE),0) -> 0 | I11: =IF(Setup!$B$24="#",0,IF(NOT($G11="-"),VLOOKUP($G11,DrawPrep!$A$3:$F$34,3,FALSE),0)) -> 0 | J11: =IF($I11>0,VLOOKUP($I11,DrawPrep!$C$3:$F$34,2,FALSE),"bye") -> bye | L11: =IF($I11>0,VLOOKUP($I11,DrawPrep!$C$3:$F$34,3,FALSE),"") ->  | M11: 2 | N11: =UPPER(IF($A$2="R",IF(OR(M11=1,M11="a"),I11,IF(OR(M11=2,M11="b"),I12,"")),IF(OR(M11=1,M11="a"),K11,IF(OR(M11=2,M11="b"),K12,"")))) -> ΚΑΤΣΟΥΔΑ | P11: 60 60
A12: 8 | B12: =VALUE(Setup!E5) -> 7 | D12: 4 | E12: 0 | F12: =IF(NOT($G12="-"),VLOOKUP($G12,DrawPrep!$A$3:$F$34,2,FALSE),"") -> 0 | G12: =VLOOKUP($B12,Setup!$K$2:$L$33,2,FALSE) -> 7 | H12: =IF($G12>0,VLOOKUP($G12,DrawPrep!$A$3:$F$34,6,FALSE),0) -> 43 | I12: =IF(Setup!$B$24="#",0,IF($G12>0,VLOOKUP($G12,DrawPrep!$A$3:$F$34,3,FALSE),0)) -> 33367 | J12: =IF($I12>0,VLOOKUP($I12,DrawPrep!$C$3:$F$34,2,FALSE),"bye") -> ΚΑΤΣΟΥΔΑ ΑΣΠΑΣΙΑ | K12: ΚΑΤΣΟΥΔΑ | L12: =IF($I12>0,VLOOKUP($I12,DrawPrep!$C$3:$F$34,3,FALSE),"") -> Ο.Α.ΣΥΡΟΥ | T12: =UPPER(IF($A$2="R",IF(OR(S12=1,S12="a"),R8,IF(OR(S12=2,S12="b"),R16,"")),IF(OR(S12=1,S12="a"),R8,IF(OR(S12=2,S12="b"),R16,"")))) -> 
A13: 9 | B13: =VALUE(Setup!E2) -> 4 | D13: 4 | E13: 0 | F13: =IF(NOT($G13="-"),VLOOKUP($G13,DrawPrep!$A$3:$F$34,2,FALSE),"") -> 0 | G13: =VLOOKUP($B13,Setup!$K$2:$L$33,2,FALSE) -> 4 | H13: =IF($G13>0,VLOOKUP($G13,DrawPrep!$A$3:$F$34,6,FALSE),0) -> 44.5 | I13: =IF(Setup!$B$24="#",0,IF($G13>0,VLOOKUP($G13,DrawPrep!$A$3:$F$34,3,FALSE),0)) -> 34304 | J13: =IF($I13>0,VLOOKUP($I13,DrawPrep!$C$3:$F$34,2,FALSE),"bye") -> ΚΟΥΡΟΥΚΛΗ ΑΛΕΞΑΝΔΡΑ | K13: ΚΟΥΡΟΥΚΛΗ | L13: =IF($I13>0,VLOOKUP($I13,DrawPrep!$C$3:$F$34,3,FALSE),"") -> Ο.Α.ΑΘΗΝΩΝ | M13: 1 | N13: =UPPER(IF($A$2="R",IF(OR(M13=1,M13="a"),I13,IF(OR(M13=2,M13="b"),I14,"")),IF(OR(M13=1,M13="a"),K13,IF(OR(M13=2,M13="b"),K14,"")))) -> ΚΟΥΡΟΥΚΛΗ
A14: 10 | B14: =7-D14+8 -> 10 | C14: =B13 -> 4 | D14: 5 | E14: =IF($B$2>=C14,1,0) -> 1 | F14: =IF(NOT($G14="-"),VLOOKUP($G14,DrawPrep!$A$3:$F$34,2,FALSE),"") ->  | G14: =IF($B$2>=C14,"-",VLOOKUP($B14,Setup!$K$2:$L$33,2,FALSE)) -> - | H14: =IF(NOT($G14="-"),VLOOKUP($G14,DrawPrep!$A$3:$F$34,6,FALSE),0) -> 0 | I14: =IF(Setup!$B$24="#",0,IF(NOT($G14="-"),VLOOKUP($G14,DrawPrep!$A$3:$F$34,3,FALSE),0)) -> 0 | J14: =IF($I14>0,VLOOKUP($I14,DrawPrep!$C$3:$F$34,2,FALSE),"bye") -> bye | L14: =IF($I14>0,VLOOKUP($I14,DrawPrep!$C$3:$F$34,3,FALSE),"") ->  | O14: 2 | P14: =UPPER(IF($A$2="R",IF(OR(O14=1,O14="a"),N13,IF(OR(O14=2,O14="b"),N15,"")),IF(OR(O14=1,O14="a"),N13,IF(OR(O14=2,O14="b"),N15,"")))) -> ΚΟΥΡΟΥΚΛΗ
A15: 11 | B15: =8-D15+8 -> 11 | D15: 5 | E15: 0 | F15: =IF(NOT($G15="-"),VLOOKUP($G15,DrawPrep!$A$3:$F$34,2,FALSE),"") -> 0 | G15: =VLOOKUP($B15,Setup!$K$2:$L$33,2,FALSE) -> 11 | H15: =IF($G15>0,VLOOKUP($G15,DrawPrep!$A$3:$F$34,6,FALSE),0) -> 31 | I15: =IF(Setup!$B$24="#",0,IF($G15>0,VLOOKUP($G15,DrawPrep!$A$3:$F$34,3,FALSE),0)) -> 34303 | J15: =IF($I15>0,VLOOKUP($I15,DrawPrep!$C$3:$F$34,2,FALSE),"bye") -> ΚΟΥΡΟΥΚΛΗ ΑΝΝΑ | K15: ΚΟΥΡΟΥΚΛΗ | L15: =IF($I15>0,VLOOKUP($I15,DrawPrep!$C$3:$F$34,3,FALSE),"") -> Ο.Α.ΑΘΗΝΩΝ | M15: 1 | N15: =UPPER(IF($A$2="R",IF(OR(M15=1,M15="a"),I15,IF(OR(M15=2,M15="b"),I16,"")),IF(OR(M15=1,M15="a"),K15,IF(OR(M15=2,M15="b"),K16,"")))) -> ΚΟΥΡΟΥΚΛΗ | P15: 55 ret
A16: 12 | B16: =9-D16+8 -> 11 | C16: 13 | D16: 6 | E16: =IF($B$2>=C16,1,0) -> 1 | F16: =IF(NOT($G16="-"),VLOOKUP($G16,DrawPrep!$A$3:$F$34,2,FALSE),"") ->  | G16: =IF($B$2>=C16,"-",VLOOKUP($B16,Setup!$K$2:$L$33,2,FALSE)) -> - | H16: =IF(NOT($G16="-"),VLOOKUP($G16,DrawPrep!$A$3:$F$34,6,FALSE),0) -> 0 | I16: =IF(Setup!$B$24="#",0,IF(NOT($G16="-"),VLOOKUP($G16,DrawPrep!$A$3:$F$34,3,FALSE),0)) -> 0 | J16: =IF($I16>0,VLOOKUP($I16,DrawPrep!$C$3:$F$34,2,FALSE),"bye") -> bye | L16: =IF($I16>0,VLOOKUP($I16,DrawPrep!$C$3:$F$34,3,FALSE),"") ->  | R16: =UPPER(IF($A$2="R",IF(OR(Q16=1,Q16="a"),P14,IF(OR(Q16=2,Q16="b"),P18,"")),IF(OR(Q16=1,Q16="a"),P14,IF(OR(Q16=2,Q16="b"),P18,"")))) -> 
A17: 13 | B17: =10-D17+8 -> 12 | D17: 6 | E17: 0 | F17: =IF(NOT($G17="-"),VLOOKUP($G17,DrawPrep!$A$3:$F$34,2,FALSE),"") -> 0 | G17: =VLOOKUP($B17,Setup!$K$2:$L$33,2,FALSE) -> 16 | H17: =IF($G17>0,VLOOKUP($G17,DrawPrep!$A$3:$F$34,6,FALSE),0) -> 5 | I17: =IF(Setup!$B$24="#",0,IF($G17>0,VLOOKUP($G17,DrawPrep!$A$3:$F$34,3,FALSE),0)) -> 37755 | J17: =IF($I17>0,VLOOKUP($I17,DrawPrep!$C$3:$F$34,2,FALSE),"bye") -> ΚΑΛΑΧΑΝΗ ΣΤΑΥΡΟΥΛΑ-ΑΝΝΑ | K17: ΚΑΛΑΧΑΝΗ | L17: =IF($I17>0,VLOOKUP($I17,DrawPrep!$C$3:$F$34,3,FALSE),"") -> Α.Σ.ΚΟΛΛΕΓΙΟΥ ΝΤΕΡΗ | M17: 1 | N17: =UPPER(IF($A$2="R",IF(OR(M17=1,M17="a"),I17,IF(OR(M17=2,M17="b"),I18,"")),IF(OR(M17=1,M17="a"),K17,IF(OR(M17=2,M17="b"),K18,"")))) -> ΚΑΛΑΧΑΝΗ
A18: 14 | B18: =11-D18+8 -> 12 | C18: 11 | D18: 7 | E18: =IF($B$2>=C18,1,0) -> 1 | F18: =IF(NOT($G18="-"),VLOOKUP($G18,DrawPrep!$A$3:$F$34,2,FALSE),"") ->  | G18: =IF($B$2>=C18,"-",VLOOKUP($B18,Setup!$K$2:$L$33,2,FALSE)) -> - | H18: =IF(NOT($G18="-"),VLOOKUP($G18,DrawPrep!$A$3:$F$34,6,FALSE),0) -> 0 | I18: =IF(Setup!$B$24="#",0,IF(NOT($G18="-"),VLOOKUP($G18,DrawPrep!$A$3:$F$34,3,FALSE),0)) -> 0 | J18: =IF($I18>0,VLOOKUP($I18,DrawPrep!$C$3:$F$34,2,FALSE),"bye") -> bye | L18: =IF($I18>0,VLOOKUP($I18,DrawPrep!$C$3:$F$34,3,FALSE),"") ->  | O18: 2 | P18: =UPPER(IF($A$2="R",IF(OR(O18=1,O18="a"),N17,IF(OR(O18=2,O18="b"),N19,"")),IF(OR(O18=1,O18="a"),N17,IF(OR(O18=2,O18="b"),N19,"")))) -> ΜΑΥΡΟΜΑΤΗ
A19: 15 | B19: =12-D19+8 -> 12 | C19: =B20 -> 6 | D19: 8 | E19: =IF($B$2>=C19,1,0) -> 1 | F19: =IF(NOT($G19="-"),VLOOKUP($G19,DrawPrep!$A$3:$F$34,2,FALSE),"") ->  | G19: =IF($B$2>=C19,"-",VLOOKUP($B19,Setup!$K$2:$L$33,2,FALSE)) -> - | H19: =IF(NOT($G19="-"),VLOOKUP($G19,DrawPrep!$A$3:$F$34,6,FALSE),0) -> 0 | I19: =IF(Setup!$B$24="#",0,IF(NOT($G19="-"),VLOOKUP($G19,DrawPrep!$A$3:$F$34,3,FALSE),0)) -> 0 | J19: =IF($I19>0,VLOOKUP($I19,DrawPrep!$C$3:$F$34,2,FALSE),"bye") -> bye | L19: =IF($I19>0,VLOOKUP($I19,DrawPrep!$C$3:$F$34,3,FALSE),"") ->  | M19: 2 | N19: =UPPER(IF($A$2="R",IF(OR(M19=1,M19="a"),I19,IF(OR(M19=2,M19="b"),I20,"")),IF(OR(M19=1,M19="a"),K19,IF(OR(M19=2,M19="b"),K20,"")))) -> ΜΑΥΡΟΜΑΤΗ | P19: 62 61
A20: 16 | B20: =VALUE(Setup!E6) -> 6 | D20: 8 | E20: 0 | F20: =IF(NOT($G20="-"),VLOOKUP($G20,DrawPrep!$A$3:$F$34,2,FALSE),"") -> 0 | G20: =VLOOKUP($B20,Setup!$K$2:$L$33,2,FALSE) -> 6 | H20: =IF($G20>0,VLOOKUP($G20,DrawPrep!$A$3:$F$34,6,FALSE),0) -> 43.5 | I20: =IF(Setup!$B$24="#",0,IF($G20>0,VLOOKUP($G20,DrawPrep!$A$3:$F$34,3,FALSE),0)) -> 34244 | J20: =IF($I20>0,VLOOKUP($I20,DrawPrep!$C$3:$F$34,2,FALSE),"bye") -> ΜΑΥΡΟΜΑΤΗ ΜΑΡΙΑ | K20: ΜΑΥΡΟΜΑΤΗ | L20: =IF($I20>0,VLOOKUP($I20,DrawPrep!$C$3:$F$34,3,FALSE),"") -> Α.Σ.ΑΚΡΟΠΟΛΙΣ | T20: =UPPER(IF($A$2="R",IF(OR(S20=1,S20="a"),T12,IF(OR(S20=2,S20="b"),T28,"")),IF(OR(S20=1,S20="a"),T12,IF(OR(S20=2,S20="b"),T28,"")))) -> 
A21: 17 | B21: =VALUE(Setup!E7) -> 8 | D21: 8 | E21: 0 | F21: =IF(NOT($G21="-"),VLOOKUP($G21,DrawPrep!$A$3:$F$34,2,FALSE),"") -> 0 | G21: =VLOOKUP($B21,Setup!$K$2:$L$33,2,FALSE) -> 8 | H21: =IF($G21>0,VLOOKUP($G21,DrawPrep!$A$3:$F$34,6,FALSE),0) -> 40.5 | I21: =IF(Setup!$B$24="#",0,IF($G21>0,VLOOKUP($G21,DrawPrep!$A$3:$F$34,3,FALSE),0)) -> 35150 | J21: =IF($I21>0,VLOOKUP($I21,DrawPrep!$C$3:$F$34,2,FALSE),"bye") -> ΠΙΣΛΗ ΕΙΡΗΝΗ | K21: ΠΙΣΛΗ | L21: =IF($I21>0,VLOOKUP($I21,DrawPrep!$C$3:$F$34,3,FALSE),"") -> Α.Ο.Α.ΑΤΤΙΚΟΣ ΗΛΙΟΣ | M21: 1 | N21: =UPPER(IF($A$2="R",IF(OR(M21=1,M21="a"),I21,IF(OR(M21=2,M21="b"),I22,"")),IF(OR(M21=1,M21="a"),K21,IF(OR(M21=2,M21="b"),K22,"")))) -> ΠΙΣΛΗ
A22: 18 | B22: =13-D22+8 -> 12 | C22: =B21 -> 8 | D22: 9 | E22: =IF($B$2>=C22,1,0) -> 1 | F22: =IF(NOT($G22="-"),VLOOKUP($G22,DrawPrep!$A$3:$F$34,2,FALSE),"") ->  | G22: =IF($B$2>=C22,"-",VLOOKUP($B22,Setup!$K$2:$L$33,2,FALSE)) -> - | H22: =IF(NOT($G22="-"),VLOOKUP($G22,DrawPrep!$A$3:$F$34,6,FALSE),0) -> 0 | I22: =IF(Setup!$B$24="#",0,IF(NOT($G22="-"),VLOOKUP($G22,DrawPrep!$A$3:$F$34,3,FALSE),0)) -> 0 | J22: =IF($I22>0,VLOOKUP($I22,DrawPrep!$C$3:$F$34,2,FALSE),"bye") -> bye | L22: =IF($I22>0,VLOOKUP($I22,DrawPrep!$C$3:$F$34,3,FALSE),"") ->  | O22: 2 | P22: =UPPER(IF($A$2="R",IF(OR(O22=1,O22="a"),N21,IF(OR(O22=2,O22="b"),N23,"")),IF(OR(O22=1,O22="a"),N21,IF(OR(O22=2,O22="b"),N23,"")))) -> ΚΩΛΕΤΣΗ
A23: 19 | B23: =14-D23+8 -> 13 | D23: 9 | E23: 0 | F23: =IF(NOT($G23="-"),VLOOKUP($G23,DrawPrep!$A$3:$F$34,2,FALSE),"") -> 0 | G23: =VLOOKUP($B23,Setup!$K$2:$L$33,2,FALSE) -> 10 | H23: =IF($G23>0,VLOOKUP($G23,DrawPrep!$A$3:$F$34,6,FALSE),0) -> 38 | I23: =IF(Setup!$B$24="#",0,IF($G23>0,VLOOKUP($G23,DrawPrep!$A$3:$F$34,3,FALSE),0)) -> 35699 | J23: =IF($I23>0,VLOOKUP($I23,DrawPrep!$C$3:$F$34,2,FALSE),"bye") -> ΚΩΛΕΤΣΗ ΑΙΚΑΤΕΡΙΝΗ | K23: ΚΩΛΕΤΣΗ | L23: =IF($I23>0,VLOOKUP($I23,DrawPrep!$C$3:$F$34,3,FALSE),"") -> Α.Κ.Α.ΜΑΡΑΘΩΝΑ | M23: 1 | N23: =UPPER(IF($A$2="R",IF(OR(M23=1,M23="a"),I23,IF(OR(M23=2,M23="b"),I24,"")),IF(OR(M23=1,M23="a"),K23,IF(OR(M23=2,M23="b"),K24,"")))) -> ΚΩΛΕΤΣΗ | P23: 62 61
A24: 20 | B24: =15-D24+8 -> 13 | C24: 12 | D24: 10 | E24: =IF($B$2>=C24,1,0) -> 1 | F24: =IF(NOT($G24="-"),VLOOKUP($G24,DrawPrep!$A$3:$F$34,2,FALSE),"") ->  | G24: =IF($B$2>=C24,"-",VLOOKUP($B24,Setup!$K$2:$L$33,2,FALSE)) -> - | H24: =IF(NOT($G24="-"),VLOOKUP($G24,DrawPrep!$A$3:$F$34,6,FALSE),0) -> 0 | I24: =IF(Setup!$B$24="#",0,IF(NOT($G24="-"),VLOOKUP($G24,DrawPrep!$A$3:$F$34,3,FALSE),0)) -> 0 | J24: =IF($I24>0,VLOOKUP($I24,DrawPrep!$C$3:$F$34,2,FALSE),"bye") -> bye | L24: =IF($I24>0,VLOOKUP($I24,DrawPrep!$C$3:$F$34,3,FALSE),"") ->  | R24: =UPPER(IF($A$2="R",IF(OR(Q24=1,Q24="a"),P22,IF(OR(Q24=2,Q24="b"),P26,"")),IF(OR(Q24=1,Q24="a"),P22,IF(OR(Q24=2,Q24="b"),P26,"")))) -> 
A25: 21 | B25: =16-D25+8 -> 14 | D25: 10 | E25: 0 | F25: =IF(NOT($G25="-"),VLOOKUP($G25,DrawPrep!$A$3:$F$34,2,FALSE),"") -> 0 | G25: =VLOOKUP($B25,Setup!$K$2:$L$33,2,FALSE) -> 9 | H25: =IF($G25>0,VLOOKUP($G25,DrawPrep!$A$3:$F$34,6,FALSE),0) -> 38 | I25: =IF(Setup!$B$24="#",0,IF($G25>0,VLOOKUP($G25,DrawPrep!$A$3:$F$34,3,FALSE),0)) -> 27518 | J25: =IF($I25>0,VLOOKUP($I25,DrawPrep!$C$3:$F$34,2,FALSE),"bye") -> ΚΟΥΛΟΚΥΘΑ ΣΗΜΕΛΑ-ΑΡΕΤΗ | K25: ΚΟΥΛΟΚΥΘΑ | L25: =IF($I25>0,VLOOKUP($I25,DrawPrep!$C$3:$F$34,3,FALSE),"") -> Σ.Α.ΡΑΦΗΝΑΣ | M25: 1 | N25: =UPPER(IF($A$2="R",IF(OR(M25=1,M25="a"),I25,IF(OR(M25=2,M25="b"),I26,"")),IF(OR(M25=1,M25="a"),K25,IF(OR(M25=2,M25="b"),K26,"")))) -> ΚΟΥΛΟΚΥΘΑ
A26: 22 | B26: =17-D26+8 -> 14 | C26: 14 | D26: 11 | E26: =IF($B$2>=C26,1,0) -> 1 | F26: =IF(NOT($G26="-"),VLOOKUP($G26,DrawPrep!$A$3:$F$34,2,FALSE),"") ->  | G26: =IF($B$2>=C26,"-",VLOOKUP($B26,Setup!$K$2:$L$33,2,FALSE)) -> - | H26: =IF(NOT($G26="-"),VLOOKUP($G26,DrawPrep!$A$3:$F$34,6,FALSE),0) -> 0 | I26: =IF(Setup!$B$24="#",0,IF(NOT($G26="-"),VLOOKUP($G26,DrawPrep!$A$3:$F$34,3,FALSE),0)) -> 0 | J26: =IF($I26>0,VLOOKUP($I26,DrawPrep!$C$3:$F$34,2,FALSE),"bye") -> bye | L26: =IF($I26>0,VLOOKUP($I26,DrawPrep!$C$3:$F$34,3,FALSE),"") ->  | O26: 2 | P26: =UPPER(IF($A$2="R",IF(OR(O26=1,O26="a"),N25,IF(OR(O26=2,O26="b"),N27,"")),IF(OR(O26=1,O26="a"),N25,IF(OR(O26=2,O26="b"),N27,"")))) -> ΚΑΡΑΟΥΖΑ
A27: 23 | B27: =18-D27+8 -> 14 | C27: =B28 -> 3 | D27: 12 | E27: =IF($B$2>=C27,1,0) -> 1 | F27: =IF(NOT($G27="-"),VLOOKUP($G27,DrawPrep!$A$3:$F$34,2,FALSE),"") ->  | G27: =IF($B$2>=C27,"-",VLOOKUP($B27,Setup!$K$2:$L$33,2,FALSE)) -> - | H27: =IF(NOT($G27="-"),VLOOKUP($G27,DrawPrep!$A$3:$F$34,6,FALSE),0) -> 0 | I27: =IF(Setup!$B$24="#",0,IF(NOT($G27="-"),VLOOKUP($G27,DrawPrep!$A$3:$F$34,3,FALSE),0)) -> 0 | J27: =IF($I27>0,VLOOKUP($I27,DrawPrep!$C$3:$F$34,2,FALSE),"bye") -> bye | L27: =IF($I27>0,VLOOKUP($I27,DrawPrep!$C$3:$F$34,3,FALSE),"") ->  | M27: 2 | N27: =UPPER(IF($A$2="R",IF(OR(M27=1,M27="a"),I27,IF(OR(M27=2,M27="b"),I28,"")),IF(OR(M27=1,M27="a"),K27,IF(OR(M27=2,M27="b"),K28,"")))) -> ΚΑΡΑΟΥΖΑ | P27: 62 36 63
A28: 24 | B28: =VALUE(Setup!E3) -> 3 | D28: 12 | E28: 0 | F28: =IF(NOT($G28="-"),VLOOKUP($G28,DrawPrep!$A$3:$F$34,2,FALSE),"") -> 0 | G28: =VLOOKUP($B28,Setup!$K$2:$L$33,2,FALSE) -> 3 | H28: =IF($G28>0,VLOOKUP($G28,DrawPrep!$A$3:$F$34,6,FALSE),0) -> 50.5 | I28: =IF(Setup!$B$24="#",0,IF($G28>0,VLOOKUP($G28,DrawPrep!$A$3:$F$34,3,FALSE),0)) -> 34938 | J28: =IF($I28>0,VLOOKUP($I28,DrawPrep!$C$3:$F$34,2,FALSE),"bye") -> ΚΑΡΑΟΥΖΑ ΣΙΜΟΝ-ΜΑΡΙΑ | K28: ΚΑΡΑΟΥΖΑ | L28: =IF($I28>0,VLOOKUP($I28,DrawPrep!$C$3:$F$34,3,FALSE),"") -> Σ.Α.ΡΑΦΗΝΑΣ | T28: =UPPER(IF($A$2="R",IF(OR(S28=1,S28="a"),R24,IF(OR(S28=2,S28="b"),R32,"")),IF(OR(S28=1,S28="a"),R24,IF(OR(S28=2,S28="b"),R32,"")))) -> 
A29: 25 | B29: =VALUE(Setup!E8) -> 5 | D29: 12 | E29: 0 | F29: =IF(NOT($G29="-"),VLOOKUP($G29,DrawPrep!$A$3:$F$34,2,FALSE),"") -> 0 | G29: =VLOOKUP($B29,Setup!$K$2:$L$33,2,FALSE) -> 5 | H29: =IF($G29>0,VLOOKUP($G29,DrawPrep!$A$3:$F$34,6,FALSE),0) -> 44.5 | I29: =IF(Setup!$B$24="#",0,IF($G29>0,VLOOKUP($G29,DrawPrep!$A$3:$F$34,3,FALSE),0)) -> 35976 | J29: =IF($I29>0,VLOOKUP($I29,DrawPrep!$C$3:$F$34,2,FALSE),"bye") -> ΠΑΠΑΠΑΝΑΓΙΩΤΟΥ ΗΔΥΛΗ-ΜΑΡΙΑ | K29: ΠΑΠΑΠΑΝΑΓΙΩΤΟΥ | L29: =IF($I29>0,VLOOKUP($I29,DrawPrep!$C$3:$F$34,3,FALSE),"") -> Α.Ο.Α.ΑΤΤΙΚΟΣ ΗΛΙΟΣ | M29: 1 | N29: =UPPER(IF($A$2="R",IF(OR(M29=1,M29="a"),I29,IF(OR(M29=2,M29="b"),I30,"")),IF(OR(M29=1,M29="a"),K29,IF(OR(M29=2,M29="b"),K30,"")))) -> ΠΑΠΑΠΑΝΑΓΙΩΤΟΥ
A30: 26 | B30: =19-D30+8 -> 14 | C30: =B29 -> 5 | D30: 13 | E30: =IF($B$2>=C30,1,0) -> 1 | F30: =IF(NOT($G30="-"),VLOOKUP($G30,DrawPrep!$A$3:$F$34,2,FALSE),"") ->  | G30: =IF($B$2>=C30,"-",VLOOKUP($B30,Setup!$K$2:$L$33,2,FALSE)) -> - | H30: =IF(NOT($G30="-"),VLOOKUP($G30,DrawPrep!$A$3:$F$34,6,FALSE),0) -> 0 | I30: =IF(Setup!$B$24="#",0,IF(NOT($G30="-"),VLOOKUP($G30,DrawPrep!$A$3:$F$34,3,FALSE),0)) -> 0 | J30: =IF($I30>0,VLOOKUP($I30,DrawPrep!$C$3:$F$34,2,FALSE),"bye") -> bye | L30: =IF($I30>0,VLOOKUP($I30,DrawPrep!$C$3:$F$34,3,FALSE),"") ->  | O30: 1 | P30: =UPPER(IF($A$2="R",IF(OR(O30=1,O30="a"),N29,IF(OR(O30=2,O30="b"),N31,"")),IF(OR(O30=1,O30="a"),N29,IF(OR(O30=2,O30="b"),N31,"")))) -> ΠΑΠΑΠΑΝΑΓΙΩΤΟΥ
A31: 27 | B31: =20-D31+8 -> 15 | D31: 13 | E31: 0 | F31: =IF(NOT($G31="-"),VLOOKUP($G31,DrawPrep!$A$3:$F$34,2,FALSE),"") -> 0 | G31: =VLOOKUP($B31,Setup!$K$2:$L$33,2,FALSE) -> 17 | H31: =IF($G31>0,VLOOKUP($G31,DrawPrep!$A$3:$F$34,6,FALSE),0) -> 4.5 | I31: =IF(Setup!$B$24="#",0,IF($G31>0,VLOOKUP($G31,DrawPrep!$A$3:$F$34,3,FALSE),0)) -> 38581 | J31: =IF($I31>0,VLOOKUP($I31,DrawPrep!$C$3:$F$34,2,FALSE),"bye") -> ΑΝΑΓΝΩΣΤΟΠΟΥΛΟΥ ΕΥΡΙΔΗΚΗ-ΕΙΡΗΝΗ | K31: ΑΝΑΓΝΩΣΤΟΠΟΥΛΟΥ | L31: =IF($I31>0,VLOOKUP($I31,DrawPrep!$C$3:$F$34,3,FALSE),"") -> Α.Μ.Ε.Σ.Ν.ΕΡΥΘΡΑΙΑΣ | M31: 1 | N31: =UPPER(IF($A$2="R",IF(OR(M31=1,M31="a"),I31,IF(OR(M31=2,M31="b"),I32,"")),IF(OR(M31=1,M31="a"),K31,IF(OR(M31=2,M31="b"),K32,"")))) -> ΑΝΑΓΝΩΣΤΟΠΟΥΛΟΥ | P31: 60 60
A32: 28 | B32: =21-D32+8 -> 15 | C32: 10 | D32: 14 | E32: =IF($B$2>=C32,1,0) -> 1 | F32: =IF(NOT($G32="-"),VLOOKUP($G32,DrawPrep!$A$3:$F$34,2,FALSE),"") ->  | G32: =IF($B$2>=C32,"-",VLOOKUP($B32,Setup!$K$2:$L$33,2,FALSE)) -> - | H32: =IF(NOT($G32="-"),VLOOKUP($G32,DrawPrep!$A$3:$F$34,6,FALSE),0) -> 0 | I32: =IF(Setup!$B$24="#",0,IF(NOT($G32="-"),VLOOKUP($G32,DrawPrep!$A$3:$F$34,3,FALSE),0)) -> 0 | J32: =IF($I32>0,VLOOKUP($I32,DrawPrep!$C$3:$F$34,2,FALSE),"bye") -> bye | L32: =IF($I32>0,VLOOKUP($I32,DrawPrep!$C$3:$F$34,3,FALSE),"") ->  | R32: =UPPER(IF($A$2="R",IF(OR(Q32=1,Q32="a"),P30,IF(OR(Q32=2,Q32="b"),P34,"")),IF(OR(Q32=1,Q32="a"),P30,IF(OR(Q32=2,Q32="b"),P34,"")))) -> 
A33: 29 | B33: =22-D33+8 -> 16 | D33: 14 | E33: 0 | F33: =IF(NOT($G33="-"),VLOOKUP($G33,DrawPrep!$A$3:$F$34,2,FALSE),"") -> 0 | G33: =VLOOKUP($B33,Setup!$K$2:$L$33,2,FALSE) -> 12 | H33: =IF($G33>0,VLOOKUP($G33,DrawPrep!$A$3:$F$34,6,FALSE),0) -> 28.5 | I33: =IF(Setup!$B$24="#",0,IF($G33>0,VLOOKUP($G33,DrawPrep!$A$3:$F$34,3,FALSE),0)) -> 35916 | J33: =IF($I33>0,VLOOKUP($I33,DrawPrep!$C$3:$F$34,2,FALSE),"bye") -> ΚΕΦΑΛΑ ΑΝΝΑ | K33: ΚΕΦΑΛΑ | L33: =IF($I33>0,VLOOKUP($I33,DrawPrep!$C$3:$F$34,3,FALSE),"") -> Α.Κ.Α.ΜΑΡΑΘΩΝΑ | M33: 1 | N33: =UPPER(IF($A$2="R",IF(OR(M33=1,M33="a"),I33,IF(OR(M33=2,M33="b"),I34,"")),IF(OR(M33=1,M33="a"),K33,IF(OR(M33=2,M33="b"),K34,"")))) -> ΚΕΦΑΛΑ
A34: 30 | B34: =23-D34+8 -> 17 | C34: 16 | D34: 14 | E34: =IF($B$2>=C34,1,0) -> 0 | F34: =IF(NOT($G34="-"),VLOOKUP($G34,DrawPrep!$A$3:$F$34,2,FALSE),"") -> 0 | G34: =IF($B$2>=C34,"-",VLOOKUP($B34,Setup!$K$2:$L$33,2,FALSE)) -> 15 | H34: =IF(NOT($G34="-"),VLOOKUP($G34,DrawPrep!$A$3:$F$34,6,FALSE),0) -> 12 | I34: =IF(Setup!$B$24="#",0,IF(NOT($G34="-"),VLOOKUP($G34,DrawPrep!$A$3:$F$34,3,FALSE),0)) -> 35739 | J34: =IF($I34>0,VLOOKUP($I34,DrawPrep!$C$3:$F$34,2,FALSE),"bye") -> ΔΟΥΛΟΠΟΥΛΟΥ ΕΛΙΣΣΑΒΕΤ | K34: ΔΟΥΛΟΠΟΥΛΟΥ | L34: =IF($I34>0,VLOOKUP($I34,DrawPrep!$C$3:$F$34,3,FALSE),"") -> Ο.Α.ΑΘΗΝΩΝ | N34: 36 55 ret | O34: 2 | P34: =UPPER(IF($A$2="R",IF(OR(O34=1,O34="a"),N33,IF(OR(O34=2,O34="b"),N35,"")),IF(OR(O34=1,O34="a"),N33,IF(OR(O34=2,O34="b"),N35,"")))) -> ΜΠΑΞΟΠΟΥΛΟΥ
A35: 31 | B35: =24-D35+8 -> 17 | C35: =B36 -> 2 | D35: 15 | E35: =IF($B$2>=C35,1,0) -> 1 | F35: =IF(NOT($G35="-"),VLOOKUP($G35,DrawPrep!$A$3:$F$34,2,FALSE),"") ->  | G35: =IF($B$2>=C35,"-",VLOOKUP($B35,Setup!$K$2:$L$33,2,FALSE)) -> - | H35: =IF(NOT($G35="-"),VLOOKUP($G35,DrawPrep!$A$3:$F$34,6,FALSE),0) -> 0 | I35: =IF(Setup!$B$24="#",0,IF(NOT($G35="-"),VLOOKUP($G35,DrawPrep!$A$3:$F$34,3,FALSE),0)) -> 0 | J35: =IF($I35>0,VLOOKUP($I35,DrawPrep!$C$3:$F$34,2,FALSE),"bye") -> bye | L35: =IF($I35>0,VLOOKUP($I35,DrawPrep!$C$3:$F$34,3,FALSE),"") ->  | M35: 2 | N35: =UPPER(IF($A$2="R",IF(OR(M35=1,M35="a"),I35,IF(OR(M35=2,M35="b"),I36,"")),IF(OR(M35=1,M35="a"),K35,IF(OR(M35=2,M35="b"),K36,"")))) -> ΜΠΑΞΟΠΟΥΛΟΥ | P35: 6261
A36: 32 | B36: 2 | D36: 15 | E36: 0 | F36: =IF(NOT($G36="-"),VLOOKUP($G36,DrawPrep!$A$3:$F$34,2,FALSE),"") -> 0 | G36: =VLOOKUP($B36,Setup!$K$2:$L$33,2,FALSE) -> 2 | H36: =IF($G36>0,VLOOKUP($G36,DrawPrep!$A$3:$F$34,6,FALSE),0) -> 59 | I36: =IF(Setup!$B$24="#",0,IF($G36>0,VLOOKUP($G36,DrawPrep!$A$3:$F$34,3,FALSE),0)) -> 35645 | J36: =IF($I36>0,VLOOKUP($I36,DrawPrep!$C$3:$F$34,2,FALSE),"bye") -> ΜΠΑΞΟΠΟΥΛΟΥ ΔΕΣΠΟΙΝΑ | K36: ΜΠΑΞΟΠΟΥΛΟΥ | L36: =IF($I36>0,VLOOKUP($I36,DrawPrep!$C$3:$F$34,3,FALSE),"") -> ΠΕΥΚΗ Γ.ΚΑΛΟΒΕΛΩΝΗΣ
J39: seeded players
J40: ="1. " & IF(Setup!B19>0,LEFT(DrawPrep!D3,FIND(" ",DrawPrep!D3)+1),"") -> 1. ΠΛΑΤΣΙΩΤΑ Ρ
J41: ="2. " & IF(Setup!B19>1,LEFT(DrawPrep!D4,FIND(" ",DrawPrep!D4)+1),"") -> 2. ΜΠΑΞΟΠΟΥΛΟΥ Δ | R41: επιδιαιτητής
J42: ="3. " & IF(Setup!B19>2,LEFT(DrawPrep!D5,FIND(" ",DrawPrep!D5)+1),"") -> 3. ΚΑΡΑΟΥΖΑ Σ | R42: =Setup!B10 -> Πατσουράκου Δώρα
J43: ="4. " & IF(Setup!B19>3,LEFT(DrawPrep!D6,FIND(" ",DrawPrep!D6)+1),"") -> 4. ΚΟΥΡΟΥΚΛΗ Α
J44: ="5. " & IF(Setup!B19>4,LEFT(DrawPrep!D7,FIND(" ",DrawPrep!D7)+1),"") -> 5. ΠΑΠΑΠΑΝΑΓΙΩΤΟΥ Η
J45: ="6. " & IF(Setup!B19>5,LEFT(DrawPrep!D8,FIND(" ",DrawPrep!D8)+1),"") -> 6. ΜΑΥΡΟΜΑΤΗ Μ
J46: ="7. " & IF(Setup!B19>6,LEFT(DrawPrep!D9,FIND(" ",DrawPrep!D9)+1),"") -> 7. ΚΑΤΣΟΥΔΑ Α
J47: ="8. " & IF(Setup!B19>7,LEFT(DrawPrep!D10,FIND(" ",DrawPrep!D10)+1),"") -> 8. ΠΙΣΛΗ Ε
J59: BoldPlayers
J60: =IF(Setup!$B$19>0,LEFT(DrawPrep!D3,FIND(" ",DrawPrep!D3)-1)) -> ΠΛΑΤΣΙΩΤΑ
J61: =IF(Setup!$B$19>1,LEFT(DrawPrep!D4,FIND(" ",DrawPrep!D4)-1)) -> ΜΠΑΞΟΠΟΥΛΟΥ
J62: =IF(Setup!$B$19>2,LEFT(DrawPrep!D5,FIND(" ",DrawPrep!D5)-1)) -> ΚΑΡΑΟΥΖΑ
J63: =IF(Setup!$B$19>3,LEFT(DrawPrep!D6,FIND(" ",DrawPrep!D6)-1)) -> ΚΟΥΡΟΥΚΛΗ
J64: =IF(Setup!$B$19>4,LEFT(DrawPrep!D7,FIND(" ",DrawPrep!D7)-1)) -> ΠΑΠΑΠΑΝΑΓΙΩΤΟΥ
J65: =IF(Setup!$B$19>5,LEFT(DrawPrep!D8,FIND(" ",DrawPrep!D8)-1)) -> ΜΑΥΡΟΜΑΤΗ
J66: =IF(Setup!$B$19>6,LEFT(DrawPrep!D9,FIND(" ",DrawPrep!D9)-1)) -> ΚΑΤΣΟΥΔΑ
J67: =IF(Setup!$B$19>7,LEFT(DrawPrep!D10,FIND(" ",DrawPrep!D10)-1)) -> ΠΙΣΛΗ

Sheet PrgPrep (hidden)
A1: =Setup!B3 & ", " & Setup!B4 & ", " & Setup!B6 & " (" & Setup!B7 & ")" -> ΕΦΟΑ, 5ο Ε3, A.O. ΒΑΡΗΣ ΑΝΑΓΥΡΟΥΣ (Κ14) | G1: Don't Change this Worksheet !
A2: =Setup!$B$10 -> Πατσουράκου Δώρα
A3: Πρόγραμμα αγώνων | E3: Round 1 | F3: i
A4: ΩΡΑ | B4: Κτγρ. | C4: Αθλητής-Σύλλογος | E4: Αθλητής-Σύλλογος
A5: Έναρξη | B5: =Setup!$B$7 -> Κ14 | C5: =IF(OR(Draw!J5="bye",Draw!J5="LWD"),"",CONCATENATE(LEFT(Draw!J5,FIND(" ",Draw!J5)+1)," (",Draw!L5,")")) -> ΠΛΑΤΣΙΩΤΑ Ρ (Α.Ο.Α.ΑΤΤΙΚΟΣ ΗΛΙΟΣ) | D5: =IF(OR(C5="",E5="")," ","-") ->  | E5: =IF(OR(Draw!J6="bye",Draw!J6="LWD"), "", CONCATENATE(LEFT(Draw!J6,FIND(" ",Draw!J6)+1)," (",Draw!L6,")")) -> 
B6: =Setup!$B$7 -> Κ14 | C6: =IF(OR(Draw!J7="bye",Draw!J7="LWD"),"",CONCATENATE(LEFT(Draw!J7,FIND(" ",Draw!J7)+1)," (",Draw!L7,")")) -> ΕΥΘΥΜΙΑΔΗ Ν (Α.Ο.Α.ΑΤΤΙΚΟΣ ΗΛΙΟΣ) | D6: =IF(OR(C6="",E6="")," ","-") ->  | E6: =IF(OR(Draw!J8="bye",Draw!J8="LWD"), "", CONCATENATE(LEFT(Draw!J8,FIND(" ",Draw!J8)+1)," (",Draw!L8,")")) -> 
B7: =Setup!$B$7 -> Κ14 | C7: =IF(OR(Draw!J9="bye",Draw!J9="LWD"),"",CONCATENATE(LEFT(Draw!J9,FIND(" ",Draw!J9)+1)," (",Draw!L9,")")) -> ΠΑΠΑΓΕΩΡΓΙΟΥ Ε (Α.Ο.ΑΤΛΑΝΤΙΣ) | E7: =IF(OR(Draw!J10="bye",Draw!J10="LWD"), "", CONCATENATE(LEFT(Draw!J10,FIND(" ",Draw!J10)+1)," (",Draw!L10,")")) -> 
B8: =Setup!$B$7 -> Κ14 | C8: =IF(OR(Draw!J11="bye",Draw!J11="LWD"),"",CONCATENATE(LEFT(Draw!J11,FIND(" ",Draw!J11)+1)," (",Draw!L11,")")) ->  | E8: =IF(OR(Draw!J12="bye",Draw!J12="LWD"), "", CONCATENATE(LEFT(Draw!J12,FIND(" ",Draw!J12)+1)," (",Draw!L12,")")) -> ΚΑΤΣΟΥΔΑ Α (Ο.Α.ΣΥΡΟΥ)
A9: όχι πριν | B9: =Setup!$B$7 -> Κ14 | C9: =IF(OR(Draw!J13="bye",Draw!J13="LWD"),"",CONCATENATE(LEFT(Draw!J13,FIND(" ",Draw!J13)+1)," (",Draw!L13,")")) -> ΚΟΥΡΟΥΚΛΗ Α (Ο.Α.ΑΘΗΝΩΝ) | E9: =IF(OR(Draw!J14="bye",Draw!J14="LWD"), "", CONCATENATE(LEFT(Draw!J14,FIND(" ",Draw!J14)+1)," (",Draw!L14,")")) -> 
B10: =Setup!$B$7 -> Κ14 | C10: =IF(OR(Draw!J15="bye",Draw!J15="LWD"),"",CONCATENATE(LEFT(Draw!J15,FIND(" ",Draw!J15)+1)," (",Draw!L15,")")) -> ΚΟΥΡΟΥΚΛΗ Α (Ο.Α.ΑΘΗΝΩΝ) | E10: =IF(OR(Draw!J16="bye",Draw!J16="LWD"), "", CONCATENATE(LEFT(Draw!J16,FIND(" ",Draw!J16)+1)," (",Draw!L16,")")) -> 
B11: =Setup!$B$7 -> Κ14 | C11: =IF(OR(Draw!J17="bye",Draw!J17="LWD"),"",CONCATENATE(LEFT(Draw!J17,FIND(" ",Draw!J17)+1)," (",Draw!L17,")")) -> ΚΑΛΑΧΑΝΗ Σ (Α.Σ.ΚΟΛΛΕΓΙΟΥ ΝΤΕΡΗ) | E11: =IF(OR(Draw!J18="bye",Draw!J18="LWD"), "", CONCATENATE(LEFT(Draw!J18,FIND(" ",Draw!J18)+1)," (",Draw!L18,")")) -> 
B12: =Setup!$B$7 -> Κ14 | C12: =IF(OR(Draw!J19="bye",Draw!J19="LWD"),"",CONCATENATE(LEFT(Draw!J19,FIND(" ",Draw!J19)+1)," (",Draw!L19,")")) ->  | E12: =IF(OR(Draw!J20="bye",Draw!J20="LWD"), "", CONCATENATE(LEFT(Draw!J20,FIND(" ",Draw!J20)+1)," (",Draw!L20,")")) -> ΜΑΥΡΟΜΑΤΗ Μ (Α.Σ.ΑΚΡΟΠΟΛΙΣ)
A13: όχι πριν | B13: =Setup!$B$7 -> Κ14 | C13: =IF(OR(Draw!J21="bye",Draw!J21="LWD"),"",CONCATENATE(LEFT(Draw!J21,FIND(" ",Draw!J21)+1)," (",Draw!L21,")")) -> ΠΙΣΛΗ Ε (Α.Ο.Α.ΑΤΤΙΚΟΣ ΗΛΙΟΣ) | E13: =IF(OR(Draw!J22="bye",Draw!J22="LWD"), "", CONCATENATE(LEFT(Draw!J22,FIND(" ",Draw!J22)+1)," (",Draw!L22,")")) -> 
B14: =Setup!$B$7 -> Κ14 | C14: =IF(OR(Draw!J23="bye",Draw!J23="LWD"),"",CONCATENATE(LEFT(Draw!J23,FIND(" ",Draw!J23)+1)," (",Draw!L23,")")) -> ΚΩΛΕΤΣΗ Α (Α.Κ.Α.ΜΑΡΑΘΩΝΑ) | E14: =IF(OR(Draw!J24="bye",Draw!J24="LWD"), "", CONCATENATE(LEFT(Draw!J24,FIND(" ",Draw!J24)+1)," (",Draw!L24,")")) -> 
B15: =Setup!$B$7 -> Κ14 | C15: =IF(OR(Draw!J25="bye",Draw!J25="LWD"),"",CONCATENATE(LEFT(Draw!J25,FIND(" ",Draw!J25)+1)," (",Draw!L25,")")) -> ΚΟΥΛΟΚΥΘΑ Σ (Σ.Α.ΡΑΦΗΝΑΣ) | E15: =IF(OR(Draw!J26="bye",Draw!J26="LWD"), "", CONCATENATE(LEFT(Draw!J26,FIND(" ",Draw!J26)+1)," (",Draw!L26,")")) -> 
B16: =Setup!$B$7 -> Κ14 | C16: =IF(OR(Draw!J27="bye",Draw!J27="LWD"),"",CONCATENATE(LEFT(Draw!J27,FIND(" ",Draw!J27)+1)," (",Draw!L27,")")) ->  | E16: =IF(OR(Draw!J28="bye",Draw!J28="LWD"), "", CONCATENATE(LEFT(Draw!J28,FIND(" ",Draw!J28)+1)," (",Draw!L28,")")) -> ΚΑΡΑΟΥΖΑ Σ (Σ.Α.ΡΑΦΗΝΑΣ)
A17: όχι πριν | B17: =Setup!$B$7 -> Κ14 | C17: =IF(OR(Draw!J29="bye",Draw!J29="LWD"),"",CONCATENATE(LEFT(Draw!J29,FIND(" ",Draw!J29)+1)," (",Draw!L29,")")) -> ΠΑΠΑΠΑΝΑΓΙΩΤΟΥ Η (Α.Ο.Α.ΑΤΤΙΚΟΣ ΗΛΙΟΣ) | E17: =IF(OR(Draw!J30="bye",Draw!J30="LWD"), "", CONCATENATE(LEFT(Draw!J30,FIND(" ",Draw!J30)+1)," (",Draw!L30,")")) -> 
B18: =Setup!$B$7 -> Κ14 | C18: =IF(OR(Draw!J31="bye",Draw!J31="LWD"),"",CONCATENATE(LEFT(Draw!J31,FIND(" ",Draw!J31)+1)," (",Draw!L31,")")) -> ΑΝΑΓΝΩΣΤΟΠΟΥΛΟΥ Ε (Α.Μ.Ε.Σ.Ν.ΕΡΥΘΡΑΙΑΣ) | E18: =IF(OR(Draw!J32="bye",Draw!J32="LWD"), "", CONCATENATE(LEFT(Draw!J32,FIND(" ",Draw!J32)+1)," (",Draw!L32,")")) -> 
B19: =Setup!$B$7 -> Κ14 | C19: =IF(OR(Draw!J33="bye",Draw!J33="LWD"),"",CONCATENATE(LEFT(Draw!J33,FIND(" ",Draw!J33)+1)," (",Draw!L33,")")) -> ΚΕΦΑΛΑ Α (Α.Κ.Α.ΜΑΡΑΘΩΝΑ) | D19: - | E19: =IF(OR(Draw!J34="bye",Draw!J34="LWD"), "", CONCATENATE(LEFT(Draw!J34,FIND(" ",Draw!J34)+1)," (",Draw!L34,")")) -> ΔΟΥΛΟΠΟΥΛΟΥ Ε (Ο.Α.ΑΘΗΝΩΝ)
B20: =Setup!$B$7 -> Κ14 | C20: =IF(OR(Draw!J35="bye",Draw!J35="LWD"),"",CONCATENATE(LEFT(Draw!J35,FIND(" ",Draw!J35)+1)," (",Draw!L35,")")) ->  | E20: =IF(OR(Draw!J36="bye",Draw!J36="LWD"), "", CONCATENATE(LEFT(Draw!J36,FIND(" ",Draw!J36)+1)," (",Draw!L36,")")) -> ΜΠΑΞΟΠΟΥΛΟΥ Δ (ΠΕΥΚΗ Γ.ΚΑΛΟΒΕΛΩΝΗΣ)
A22: Πρόγραμμα αγώνων | E22: Round 2 | F22: i
A23: ΩΡΑ | B23: Κτγρ. | C23: Αθλητής-Σύλλογος | E23: Αθλητής-Σύλλογος
A24: Έναρξη | B24: =Setup!$B$7 -> Κ14 | C24: =IF(Draw!M5="", "", IF(Draw!M5=1, CONCATENATE(LEFT(Draw!J5,FIND(" ",Draw!J5)+1)," (",Draw!L5,")"),CONCATENATE(LEFT(Draw!J6,FIND(" ",Draw!J6)+1)," (",Draw!L6,")"))) -> ΠΛΑΤΣΙΩΤΑ Ρ (Α.Ο.Α.ΑΤΤΙΚΟΣ ΗΛΙΟΣ) | D24: =IF(OR(C24="",E24="")," ","-") -> - | E24: =IF(Draw!M7="", "", IF(Draw!M7=1, CONCATENATE(LEFT(Draw!J7,FIND(" ",Draw!J7)+1)," (",Draw!L7,")"),CONCATENATE(LEFT(Draw!J8,FIND(" ",Draw!J8)+1)," (",Draw!L8,")"))) -> ΕΥΘΥΜΙΑΔΗ Ν (Α.Ο.Α.ΑΤΤΙΚΟΣ ΗΛΙΟΣ)
B25: =Setup!$B$7 -> Κ14 | C25: =IF(Draw!M9="", "", IF(Draw!M9=1, CONCATENATE(LEFT(Draw!J9,FIND(" ",Draw!J9)+1)," (",Draw!L9,")"),CONCATENATE(LEFT(Draw!J10,FIND(" ",Draw!J10)+1)," (",Draw!L10,")"))) -> ΠΑΠΑΓΕΩΡΓΙΟΥ Ε (Α.Ο.ΑΤΛΑΝΤΙΣ) | D25: - | E25: =IF(Draw!M11="", "", IF(Draw!M11=1, CONCATENATE(LEFT(Draw!J11,FIND(" ",Draw!J11)+1)," (",Draw!L11,")"),CONCATENATE(LEFT(Draw!J12,FIND(" ",Draw!J12)+1)," (",Draw!L12,")"))) -> ΚΑΤΣΟΥΔΑ Α (Ο.Α.ΣΥΡΟΥ)
B26: =Setup!$B$7 -> Κ14 | C26: =IF(Draw!M13="", "", IF(Draw!M13=1, CONCATENATE(LEFT(Draw!J13,FIND(" ",Draw!J13)+1)," (",Draw!L13,")"),CONCATENATE(LEFT(Draw!J14,FIND(" ",Draw!J14)+1)," (",Draw!L14,")"))) -> ΚΟΥΡΟΥΚΛΗ Α (Ο.Α.ΑΘΗΝΩΝ) | D26: - | E26: =IF(Draw!M15="", "", IF(Draw!M15=1, CONCATENATE(LEFT(Draw!J15,FIND(" ",Draw!J15)+1)," (",Draw!L15,")"),CONCATENATE(LEFT(Draw!J16,FIND(" ",Draw!J16)+1)," (",Draw!L16,")"))) -> ΚΟΥΡΟΥΚΛΗ Α (Ο.Α.ΑΘΗΝΩΝ)
B27: =Setup!$B$7 -> Κ14 | C27: =IF(Draw!M17="", "", IF(Draw!M17=1, CONCATENATE(LEFT(Draw!J17,FIND(" ",Draw!J17)+1)," (",Draw!L17,")"),CONCATENATE(LEFT(Draw!J18,FIND(" ",Draw!J18)+1)," (",Draw!L18,")"))) -> ΚΑΛΑΧΑΝΗ Σ (Α.Σ.ΚΟΛΛΕΓΙΟΥ ΝΤΕΡΗ) | D27: - | E27: =IF(Draw!M19="", "", IF(Draw!M19=1, CONCATENATE(LEFT(Draw!J19,FIND(" ",Draw!J19)+1)," (",Draw!L19,")"),CONCATENATE(LEFT(Draw!J20,FIND(" ",Draw!J20)+1)," (",Draw!L20,")"))) -> ΜΑΥΡΟΜΑΤΗ Μ (Α.Σ.ΑΚΡΟΠΟΛΙΣ)
A28: όχι πριν | B28: =Setup!$B$7 -> Κ14 | C28: =IF(Draw!M21="", "", IF(Draw!M21=1, CONCATENATE(LEFT(Draw!J21,FIND(" ",Draw!J21)+1)," (",Draw!L21,")"),CONCATENATE(LEFT(Draw!J22,FIND(" ",Draw!J22)+1)," (",Draw!L22,")"))) -> ΠΙΣΛΗ Ε (Α.Ο.Α.ΑΤΤΙΚΟΣ ΗΛΙΟΣ) | D28: - | E28: =IF(Draw!M23="", "", IF(Draw!M23=1, CONCATENATE(LEFT(Draw!J23,FIND(" ",Draw!J23)+1)," (",Draw!L23,")"),CONCATENATE(LEFT(Draw!J24,FIND(" ",Draw!J24)+1)," (",Draw!L24,")"))) -> ΚΩΛΕΤΣΗ Α (Α.Κ.Α.ΜΑΡΑΘΩΝΑ)
B29: =Setup!$B$7 -> Κ14 | C29: =IF(Draw!M25="", "", IF(Draw!M25=1, CONCATENATE(LEFT(Draw!J25,FIND(" ",Draw!J25)+1)," (",Draw!L25,")"),CONCATENATE(LEFT(Draw!J26,FIND(" ",Draw!J26)+1)," (",Draw!L26,")"))) -> ΚΟΥΛΟΚΥΘΑ Σ (Σ.Α.ΡΑΦΗΝΑΣ) | D29: - | E29: =IF(Draw!M27="", "", IF(Draw!M27=1, CONCATENATE(LEFT(Draw!J27,FIND(" ",Draw!J27)+1)," (",Draw!L27,")"),CONCATENATE(LEFT(Draw!J28,FIND(" ",Draw!J28)+1)," (",Draw!L28,")"))) -> ΚΑΡΑΟΥΖΑ Σ (Σ.Α.ΡΑΦΗΝΑΣ)
B30: =Setup!$B$7 -> Κ14 | C30: =IF(Draw!M29="", "", IF(Draw!M29=1, CONCATENATE(LEFT(Draw!J29,FIND(" ",Draw!J29)+1)," (",Draw!L29,")"),CONCATENATE(LEFT(Draw!J30,FIND(" ",Draw!J30)+1)," (",Draw!L30,")"))) -> ΠΑΠΑΠΑΝΑΓΙΩΤΟΥ Η (Α.Ο.Α.ΑΤΤΙΚΟΣ ΗΛΙΟΣ) | D30: - | E30: =IF(Draw!M31="", "", IF(Draw!M31=1, CONCATENATE(LEFT(Draw!J31,FIND(" ",Draw!J31)+1)," (",Draw!L31,")"),CONCATENATE(LEFT(Draw!J32,FIND(" ",Draw!J32)+1)," (",Draw!L32,")"))) -> ΑΝΑΓΝΩΣΤΟΠΟΥΛΟΥ Ε (Α.Μ.Ε.Σ.Ν.ΕΡΥΘΡΑΙΑΣ)
B31: =Setup!$B$7 -> Κ14 | C31: =IF(Draw!M33="", "", IF(Draw!M33=1, CONCATENATE(LEFT(Draw!J33,FIND(" ",Draw!J33)+1)," (",Draw!L33,")"),CONCATENATE(LEFT(Draw!J34,FIND(" ",Draw!J34)+1)," (",Draw!L34,")"))) -> ΚΕΦΑΛΑ Α (Α.Κ.Α.ΜΑΡΑΘΩΝΑ) | D31: - | E31: =IF(Draw!M35="", "", IF(Draw!M35=1, CONCATENATE(LEFT(Draw!J35,FIND(" ",Draw!J35)+1)," (",Draw!L35,")"),CONCATENATE(LEFT(Draw!J36,FIND(" ",Draw!J36)+1)," (",Draw!L36,")"))) -> ΜΠΑΞΟΠΟΥΛΟΥ Δ (ΠΕΥΚΗ Γ.ΚΑΛΟΒΕΛΩΝΗΣ)
A37: Don't Change this Worksheet !

Sheet Day1 (hidden)
A1: =Setup!B3 & ", " & Setup!B4 & ", " & Setup!B6 & " (" & Setup!B7 & ")" -> ΕΦΟΑ, 5ο Ε3, A.O. ΒΑΡΗΣ ΑΝΑΓΥΡΟΥΣ (Κ14)
A2: =Setup!$B$10 -> Πατσουράκου Δώρα
A3: Πρόγραμμα αγώνων | E3: Round 1 | F3: i
A4: ΩΡΑ | B4: Κτγρ. | C4: Αθλητής-Σύλλογος | E4: Αθλητής-Σύλλογος
A5: Έναρξη | B5: Κ14 | C5: ΠΛΑΤΣΙΩΤΑ Ρ (Α.Ο.Α.ΑΤΤΙΚΟΣ ΗΛΙΟΣ)
B6: Κ14 | C6: ΕΥΘΥΜΙΑΔΗ Ν (Α.Ο.Α.ΑΤΤΙΚΟΣ ΗΛΙΟΣ)
B7: Κ14 | C7: ΠΑΠΑΓΕΩΡΓΙΟΥ Ε (Α.Ο.ΑΤΛΑΝΤΙΣ)
B8: Κ14 | E8: ΚΑΤΣΟΥΔΑ Α (Ο.Α.ΣΥΡΟΥ)
B9: Κ14 | C9: ΚΟΥΡΟΥΚΛΗ Α (Ο.Α.ΑΘΗΝΩΝ)
A10: όχι πριν | B10: Κ14 | C10: ΚΟΥΡΟΥΚΛΗ Α (Ο.Α.ΑΘΗΝΩΝ)
B11: Κ14 | C11: ΚΑΛΑΧΑΝΗ Σ (Α.Σ.ΚΟΛΛΕΓΙΟΥ ΝΤΕΡΗ)
B12: Κ14 | E12: ΜΑΥΡΟΜΑΤΗ Μ (Α.Σ.ΑΚΡΟΠΟΛΙΣ)
B13: Κ14 | C13: ΠΙΣΛΗ Ε (Α.Ο.Α.ΑΤΤΙΚΟΣ ΗΛΙΟΣ)
B14: Κ14 | C14: ΚΩΛΕΤΣΗ Α (Α.Κ.Α.ΜΑΡΑΘΩΝΑ)
A15: όχι πριν | B15: Κ14 | C15: ΚΟΥΛΟΚΥΘΑ Σ (Σ.Α.ΡΑΦΗΝΑΣ)
B16: Κ14 | E16: ΚΑΡΑΟΥΖΑ Σ (Σ.Α.ΡΑΦΗΝΑΣ)
B17: Κ14 | C17: ΠΑΠΑΠΑΝΑΓΙΩΤΟΥ Η (Α.Ο.Α.ΑΤΤΙΚΟΣ ΗΛΙΟΣ)
B18: Κ14 | C18: ΑΝΑΓΝΩΣΤΟΠΟΥΛΟΥ Ε (Α.Μ.Ε.Σ.Ν.ΕΡΥΘΡΑΙΑΣ)
B19: Κ14 | C19: ΚΕΦΑΛΑ Α (Α.Κ.Α.ΜΑΡΑΘΩΝΑ) | D19: - | E19: ΔΟΥΛΟΠΟΥΛΟΥ Ε (Ο.Α.ΑΘΗΝΩΝ)
B20: Κ14 | E20: ΜΠΑΞΟΠΟΥΛΟΥ Δ (ΠΕΥΚΗ Γ.ΚΑΛΟΒΕΛΩΝΗΣ)

Sheet Day2 (hidden)
A1: =Setup!B3 & ", " & Setup!B4 & ", " & Setup!B6 & " (" & Setup!B7 & ")" -> ΕΦΟΑ, 5ο Ε3, A.O. ΒΑΡΗΣ ΑΝΑΓΥΡΟΥΣ (Κ14)
A2: =Setup!$B$10 -> Πατσουράκου Δώρα
A3: Πρόγραμμα αγώνων | E3: Round 1 | F3: i
A4: ΩΡΑ | B4: Κτγρ. | C4: Αθλητής-Σύλλογος | E4: Αθλητής-Σύλλογος
A5: Έναρξη | B5: Κ14 | C5: ΠΛΑΤΣΙΩΤΑ Ρ (Α.Ο.Α.ΑΤΤΙΚΟΣ ΗΛΙΟΣ) | D5: - | E5: ΕΥΘΥΜΙΑΔΗ Ν (Α.Ο.Α.ΑΤΤΙΚΟΣ ΗΛΙΟΣ)
B6: Κ14 | C6: ΠΑΠΑΓΕΩΡΓΙΟΥ Ε (Α.Ο.ΑΤΛΑΝΤΙΣ) | D6: - | E6: ΚΑΤΣΟΥΔΑ Α (Ο.Α.ΣΥΡΟΥ)
B7: Κ14 | C7: ΚΟΥΡΟΥΚΛΗ Α (Ο.Α.ΑΘΗΝΩΝ) | D7: - | E7: ΚΟΥΡΟΥΚΛΗ Α (Ο.Α.ΑΘΗΝΩΝ)
B8: Κ14 | C8: ΚΑΛΑΧΑΝΗ Σ (Α.Σ.ΚΟΛΛΕΓΙΟΥ ΝΤΕΡΗ) | D8: - | E8: ΜΑΥΡΟΜΑΤΗ Μ (Α.Σ.ΑΚΡΟΠΟΛΙΣ)
B9: Κ14 | C9: ΠΙΣΛΗ Ε (Α.Ο.Α.ΑΤΤΙΚΟΣ ΗΛΙΟΣ) | D9: - | E9: ΚΩΛΕΤΣΗ Α (Α.Κ.Α.ΜΑΡΑΘΩΝΑ)
A10: όχι πριν | B10: Κ14 | C10: ΚΟΥΛΟΚΥΘΑ Σ (Σ.Α.ΡΑΦΗΝΑΣ) | D10: - | E10: ΚΑΡΑΟΥΖΑ Σ (Σ.Α.ΡΑΦΗΝΑΣ)
B11: Κ14 | C11: ΠΑΠΑΠΑΝΑΓΙΩΤΟΥ Η (Α.Ο.Α.ΑΤΤΙΚΟΣ ΗΛΙΟΣ) | D11: - | E11: ΑΝΑΓΝΩΣΤΟΠΟΥΛΟΥ Ε (Α.Μ.Ε.Σ.Ν.ΕΡΥΘΡΑΙΑΣ)
B12: Κ14 | C12: ΚΕΦΑΛΑ Α (Α.Κ.Α.ΜΑΡΑΘΩΝΑ) | D12: - | E12: ΜΠΑΞΟΠΟΥΛΟΥ Δ (ΠΕΥΚΗ Γ.ΚΑΛΟΒΕΛΩΝΗΣ)

Sheet notes (hidden)

Sheet tmp (hidden)
A1: RndIndx | B1: random | C1: FixRandom | E1: α/α | F1: seed | G1: ByeOrder | I1: ΠΡΟΚΡΙΜΑΤΙΚΑ E1, E2 (32 για 8)
A2: 1 | B2: =RAND()/222 -> 0.001841221312 | C2: 0.002602975693 | E2: 1 | F2: 1 | K2: 17-32 | L2: 9-16 | M2: 5-8 | N2: 3-4 | O2: 2ος | P2: 1ος | S2: 17-32 | T2: 9-16 | U2: 5-8 | V2: 3-4 | W2: 2ος | X2: 1ος
A3: 2 | B3: 0.003744487095 | C3: 0.003279305256 | E3: 2 | G3: 1 | I3: E1 | J3: E1-12 | K3: 1 | L3: 2 | M3: 2 | N3: 0 | O3: 0 | P3: 0 | Q3: E1 | R3: E1-12 | S3: 1 | T3: 1 | U3: 0 | V3: 0 | W3: 0 | X3: 0
A4: 3 | B4: =RAND()/222 -> 0.002856457356 | C4: 0.002515920705 | E4: 3 | J4: E1-14 | K4: 3 | L4: 4 | M4: 4 | N4: 0 | O4: 0 | P4: 0 | R4: E1-14 | S4: 3 | T4: 1 | U4: 0 | V4: 0 | W4: 0 | X4: 0
A5: 4 | B5: =RAND()/222 -> 0.001590495048 | C5: 0.00337940028 | E5: 4 | G5: 15 | J5: E1-16 | K5: 6 | L5: 8 | M5: 8 | N5: 0 | O5: 0 | P5: 0 | R5: E1-16 | S5: 6 | T5: 2 | U5: 0 | V5: 0 | W5: 0 | X5: 0
A6: 5 | B6: =RAND()/222 -> 0.004114031904 | C6: 0.004273208664 | E6: 5 | J6: E1-18 | K6: 7.5 | L6: 10 | M6: 10 | R6: E1-18 | S6: 7.5 | T6: 2.5 | U6: 0 | V6: 0 | W6: 0 | X6: 0
A7: 6 | B7: =RAND()/222 -> 0.004418674559 | C7: 0.00122913736 | E7: 6 | G7: 9 | I7: E2 | J7: E2-12 | K7: 0.3 | L7: 0.5 | M7: 0.5 | N7: 0 | O7: 0 | P7: 0 | Q7: E2 | R7: E2-12 | S7: 0.3 | T7: 0.2 | U7: 0 | V7: 0 | W7: 0 | X7: 0
A8: 7 | B8: =RAND()/222 -> 0.0036252815 | C8: 0.0009749952851 | E8: 7 | G8: 5 | J8: E2-14 | K8: 1 | L8: 2 | M8: 2 | N8: 0 | O8: 0 | P8: 0 | R8: E2-14 | S8: 1 | T8: 1 | U8: 0 | V8: 0 | W8: 0 | X8: 0
A9: 8 | B9: 0.002063481329 | C9: 0.004222237882 | E9: 8 | F9: 5 | J9: E2-16 | K9: 2 | L9: 4 | M9: 4 | N9: 0 | O9: 0 | P9: 0 | R9: E2-16 | S9: 2 | T9: 2 | U9: 0 | V9: 0 | W9: 0 | X9: 0
A10: 9 | B10: 0.0003063294492 | C10: 0.001375166858 | E10: 9 | F10: 3
A11: 10 | B11: 0.004454952739 | C11: 0.002580515606 | E11: 10 | G11: 3
A12: 11 | B12: 0.004410023151 | C12: 0.003110170151 | E12: 11 | I12: ΚΥΡΙΩΣ ΤΑΜΠΛΟ E1, E2 & E3
A13: 12 | B13: 0.002609504491 | C13: 0.003816164706 | E13: 12 | G13: 13 | K13: 17-32 | L13: 9-16 | M13: 5-8 | N13: 3-4 | O13: 2ος | P13: 1ος | S13: 17-32 | T13: 9-16 | U13: 5-8 | V13: 3-4 | W13: 2ος | X13: 1ος
A14: 13 | B14: 0.0006124504143 | C14: 0.003386577433 | E14: 13 | I14: E1 | J14: E1-12 | K14: 7 | L14: 10 | M14: 14 | N14: 21 | O14: 35 | P14: 42 | Q14: E1 | R14: E1-12 | S14: 7 | T14: 3 | U14: 4 | V14: 7 | W14: 14 | X14: 7
A15: 14 | B15: 0.00308019842 | C15: 0.002918932404 | E15: 14 | G15: 11 | J15: E1-14 | K15: 10 | L15: 15 | M15: 20 | N15: 30 | O15: 50 | P15: 60 | R15: E1-14 | S15: 10 | T15: 5 | U15: 5 | V15: 10 | W15: 20 | X15: 10
A16: 15 | B16: 0.003797646368 | C16: 0.004217574819 | E16: 15 | G16: 7 | J16: E1-16 | K16: 20 | L16: 30 | M16: 40 | N16: 60 | O16: 100 | P16: 120 | R16: E1-16 | S16: 20 | T16: 10 | U16: 10 | V16: 20 | W16: 40 | X16: 20
A17: 16 | B17: 0.004266159647 | C17: 0.0005584715887 | E17: 16 | F17: 6 | J17: E1-18 | K17: 25 | L17: 37 | M17: 50 | N17: 75 | O17: 125 | P17: 150 | R17: E1-18 | S17: 25 | T17: 12 | U17: 13 | V17: 25 | W17: 50 | X17: 25
A18: 17 | B18: 0.002249152864 | C18: 0.0003838519859 | E18: 17 | F18: 7 | I18: E2 | J18: E2-12 | K18: 4 | L18: 5 | M18: 7 | N18: 10 | O18: 15 | P18: 18 | Q18: E2 | R18: E2-12 | S18: 4 | T18: 1 | U18: 2 | V18: 3 | W18: 5 | X18: 3
A19: 18 | B19: 0.003064639335 | C19: 0.003951735242 | E19: 18 | G19: 6 | J19: E2-14 | K19: 5 | L19: 8 | M19: 10 | N19: 15 | O19: 25 | P19: 30 | R19: E2-14 | S19: 5 | T19: 3 | U19: 2 | V19: 5 | W19: 10 | X19: 5
A20: 19 | B20: 0.003934382892 | C20: 0.00080035567 | E20: 19 | J20: E2-16 | K20: 10 | L20: 15 | M20: 20 | N20: 30 | O20: 50 | P20: 60 | R20: E2-16 | S20: 10 | T20: 5 | U20: 5 | V20: 10 | W20: 20 | X20: 10
A21: 20 | B21: 0.003920503122 | C21: 0.001520718879 | E21: 20 | G21: 12 | I21: E3 | J21: E3-12 | K21: 0.5 | L21: 2 | M21: 3 | N21: 4 | O21: 7 | P21: 8 | Q21: E3 | R21: E3-12 | S21: 0.5 | T21: 1.5 | U21: 1 | V21: 1 | W21: 3 | X21: 1
A22: 21 | B22: 0.002604014398 | C22: 0.003640462491 | E22: 21 | J22: E3-14 | K22: 2 | L22: 3 | M22: 4 | N22: 6 | O22: 10 | P22: 12 | R22: E3-14 | S22: 2 | T22: 1 | U22: 1 | V22: 2 | W22: 4 | X22: 2
A23: 22 | B23: 0.002775445881 | C23: 0.004111154678 | E23: 22 | G23: 14 | J23: E3-16 | K23: 4 | L23: 6 | M23: 8 | N23: 12 | O23: 20 | P23: 24 | R23: E3-16 | S23: 4 | T23: 2 | U23: 2 | V23: 4 | W23: 8 | X23: 4
A24: 23 | B24: 0.003404641207 | C24: 0.001151375949 | E24: 23 | G24: 4
A25: 24 | B25: 0.002713716065 | C25: 0.003575553357 | E25: 24 | F25: 4
A26: 25 | B26: 0.001982358889 | C26: 0.003336892656 | E26: 25 | F26: 8 | J26: ΔΙΠΛΑ E1, E2
A27: 26 | B27: 0.0009144636636 | C27: 0.003781824564 | E27: 26 | G27: 8 | L27: 9-16 | M27: 5-8 | N27: 3-4 | O27: 2ος | P27: 1ος | S27: 9-16 | T27: 5-8 | U27: 3-4 | V27: 2ος | W27: 1ος
A28: 27 | B28: 0.002638661069 | C28: 0.002097155124 | E28: 27 | J28: E1 | K28: E1-12 | L28: 3 | M28: 4 | N28: 5 | O28: 9 | P28: 11 | Q28: E1 | R28: E1-12 | S28: 3 | T28: 1 | U28: 1 | V28: 4 | W28: 2
A29: 28 | B29: 0.0007973189206 | C29: 0.004326618819 | E29: 28 | G29: 10 | K29: E1-14 | L29: 4 | M29: 5 | N29: 8 | O29: 13 | P29: 15 | R29: E1-14 | S29: 4 | T29: 1 | U29: 3 | V29: 5 | W29: 2
A30: 29 | B30: 0.001273371521 | C30: 0.002546556927 | E30: 29 | K30: E1-16 | L30: 8 | M30: 10 | N30: 15 | O30: 25 | P30: 30 | R30: E1-16 | S30: 8 | T30: 2 | U30: 5 | V30: 10 | W30: 5
A31: 30 | B31: 0.002021893529 | C31: 0.0009152265709 | E31: 30 | G31: 16 | K31: E1-18 | L31: 9 | M31: 12 | N31: 19 | O31: 31 | P31: 37 | R31: E1-18 | S31: 9 | T31: 3 | U31: 7 | V31: 12 | W31: 6
A32: 31 | B32: 0.001183569113 | C32: 6.182517313e-05 | E32: 31 | G32: 2 | J32: E2 | K32: E2-12 | L32: 1 | M32: 2 | N32: 3 | O32: 4 | P32: 8 | Q32: E2 | R32: E2-12 | S32: 1 | T32: 1 | U32: 1 | V32: 1 | W32: 4
A33: 32 | B33: 0.003612217818 | C33: 0.003367080569 | E33: 32 | F33: 2 | K33: E2-14 | L33: 2 | M33: 3 | N33: 4 | O33: 6 | P33: 8 | R33: E2-14 | S33: 2 | T33: 1 | U33: 1 | V33: 2 | W33: 2
K34: E2-16 | L34: 4 | M34: 6 | N34: 8 | O34: 12 | P34: 16 | R34: E2-16 | S34: 4 | T34: 2 | U34: 2 | V34: 4 | W34: 4

Sheet tmpRankings (hidden)
A1: ΑΜ | B1: Ονοματεπώνυμο | C1: Γεν. | D1: Σύλλογος | E1: Βαθμ
G2: =VLOOKUP(c3;tmpRankings!$A$2:$E$251;3;FALSE)
